bitfinex-derivatives/quotes_ETHF0:USTF0_20250501
["timestamp","ask_amount","ask_price","bid_price","bid_amount"]
[1746104970036,3.2078,1849.1,1849.0,1.0815]
[1746104971135,6.9958,1849.1,1849.0,1.0815]
[1746104975839,3.788,1849.1,1849.0,1.35239992]
[1746104976432,3.788,1849.1,1849.0,3.84019992]
[1746104977740,3.788,1849.1,1849.0,3.5693]
[1746104979935,4.6507,1849.1,1849.0,3.5693]
[1746104980937,4.6507,1849.1,1849.0,3.84019992]
[1746104981538,3.788,1849.1,1849.0,3.84019992]
[1746104986440,5.4331,1849.1,1849.0,3.84019992]
[1746104992244,5.4331,1849.1,1849.0,1.35239992]
[1746104999349,5.4331,1849.1,1849.0,2.95639992]
[1746105001047,9.47272307,1849.6,1849.5,1.08121]
[1746105001245,3.59672307,1849.6,1849.5,4.28901]
[1746105001551,3.59672307,1849.6,1849.5,41.88121]
[1746105001750,5.23062307,1849.6,1849.5,41.88121]
[1746105001944,5.23062307,1849.6,1849.5,43.48521]
[1746105004249,1.6339,1849.6,1849.5,43.48521]
[1746105008359,0.8621,1849.7,1849.6,1.08115]
[1746105008660,0.8621,1849.7,1849.6,2.77065]
[1746105009458,4.0419,1849.9,1849.8,1.08103]
[1746105009661,0.8092,1850.0,1849.9,1.08097]
[1746105009858,0.8092,1850.0,1849.9,1.35186992]
[1746105010159,0.8092,1850.0,1849.9,1.08097]
[1746105010459,4.017,1850.0,1849.9,1.08097]
[1746105011761,5.5809,1850.0,1849.9,1.08097]
[1746105014658,5.5809,1850.0,1849.6,0.7946]
[1746105014958,4.28887,1849.8,1849.7,1.08109]
[1746105015357,5.97557,1849.8,1849.7,1.08109]
[1746105015558,5.97553,1849.8,1849.7,1.08109]
[1746105018765,5.97557,1849.8,1849.7,1.08109]
[1746105019061,6.78797,1849.8,1849.7,1.08109]
[1746105021358,3.2078,1849.8,1849.7,1.08109]
[1746105021561,4.017,1850.0,1849.9,1.08097]
[1746105021955,5.09795,1850.0,1849.9,1.35186992]
[1746105022664,5.09795,1850.0,1849.9,0.27089992]
[1746105022849,6.80295,1850.0,1849.9,1.35186992]
[1746105026462,10.722,1850.0,1849.7,0.27089992]
[1746105026667,4.28883,1849.8,1849.7,1.35194992]
[1746105027464,10.16483,1849.8,1849.7,0.27089992]
[1746105027665,1.08109,1849.7,1849.6,1.7076]
[1746105027865,1.08121,1849.5,1849.4,1.07439992]
[1746105028059,4.28901,1849.5,1849.4,0.27089992]
[1746105028563,6.72401,1849.5,1849.4,0.27089992]
[1746105030470,4.28901,1849.5,1849.4,1.35215992]
[1746105030660,4.28901,1849.5,1849.4,2.96325992]
[1746105032568,3.2078,1849.5,1849.4,2.96325992]
[1746105033267,4.28901,1849.5,1849.4,2.96325992]
[1746105033669,3.2078,1849.5,1849.4,2.96325992]
[1746105033873,4.28901,1849.5,1849.4,2.96325992]
[1746105034170,3.2078,1849.5,1849.4,2.96325992]
[1746105034366,4.28901,1849.5,1849.4,2.96325992]
[1746105035168,3.2078,1849.5,1849.4,2.96325992]
[1746105035573,4.28901,1849.5,1849.4,2.96325992]
[1746105036070,3.2078,1849.5,1849.4,2.96325992]
[1746105036573,4.28901,1849.5,1849.4,1.88199992]
[1746105036974,4.28901,1849.5,1849.4,2.96325992]
[1746105038573,3.2078,1849.5,1849.4,2.96325992]
[1746105038876,4.28901,1849.5,1849.4,1.88199992]
[1746105039475,5.94101,1849.5,1849.4,1.88199992]
[1746105040076,5.94101,1849.5,1849.4,2.96325992]
[1746105040475,5.94101,1849.5,1849.4,1.88199992]
[1746105040776,5.94101,1849.5,1849.4,2.96325992]
[1746105040978,5.94101,1849.5,1849.4,1.88199992]
[1746105041180,5.94101,1849.5,1849.4,2.96325992]
[1746105045277,5.94101,1849.5,1849.4,1.88199992]
[1746105045471,5.94101,1849.5,1849.4,2.96325992]
[1746105047571,4.28901,1849.5,1849.4,2.96325992]
[1746105049485,3.2078,1849.5,1849.4,2.96325992]
[1746105049771,4.28901,1849.5,1849.4,2.96325992]
[1746105051379,3.2078,1849.5,1849.4,2.96325992]
[1746105051778,3.2078,1849.5,1849.4,43.76325992]
[1746105052078,4.28901,1849.5,1849.4,43.76325992]
[1746105052281,3.2078,1849.5,1849.4,43.76325992]
[1746105052877,4.28901,1849.5,1849.4,43.76325992]
[1746105053579,3.2078,1849.5,1849.4,43.76325992]
[1746105054183,4.28901,1849.5,1849.4,43.76325992]
[1746105054682,5.09651,1849.5,1849.4,43.76325992]
[1746105054981,4.0153,1849.5,1849.4,43.76325992]
[1746105057484,0.8075,1849.5,1849.4,43.76325992]
[1746105058281,1.08132,1849.3,1849.2,0.8545]
[1746105058478,4.28912,1849.3,1849.2,2.581]
[1746105058672,4.28912,1849.3,1849.2,43.381]
[1746105058877,6.01872,1849.3,1849.2,43.381]
[1746105059176,6.01872,1849.3,1849.2,44.46238]
[1746105060683,6.6835,1849.5,1849.4,1.08126]
[1746105060883,9.0838,1849.5,1849.4,1.08126]
[1746105061085,5.876,1849.5,1849.4,1.08126]
[1746105061280,9.0838,1849.5,1849.4,2.80436]
[1746105062588,10.16501,1849.5,1849.4,2.80436]
[1746105063381,1.08132,1849.3,1849.2,41.92539992]
[1746105063581,4.28912,1849.3,1849.2,43.00674992]
[1746105064593,3.2078,1849.3,1849.2,44.72154992]
[1746105064987,4.28912,1849.3,1849.2,44.72154992]
[1746105065186,5.90072,1849.3,1849.2,44.45065]
[1746105068291,5.90072,1849.3,1849.2,44.72154992]
[1746105070091,5.90072,1849.3,1849.2,2.84019992]
[1746105070285,11.77672,1849.3,1849.2,2.79618]
[1746105070489,1.08138,1849.2,1849.1,1.0814]
[1746105070688,2.69478,1849.2,1849.1,2.7256]
[1746105073192,1.08138,1849.2,1849.1,2.7256]
[1746105076891,2.70478,1849.2,1849.1,2.7256]
[1746105078793,9.0838,1849.3,1849.2,1.08138]
[1746105078992,9.0838,1849.3,1849.2,3.01437992]
[1746105079695,5.876,1849.3,1849.2,11.48237992]
[1746105080801,9.47272307,1849.3,1849.2,11.48237992]
[1746105080991,9.47272307,1849.3,1849.2,52.28237992]
[1746105081901,3.59672307,1849.3,1849.2,52.28237992]
[1746105083811,3.59672307,1849.3,1849.2,47.28237992]
[1746105084814,12.68052307,1849.8,1849.7,1.08109]
[1746105085899,13.76155307,1849.8,1849.7,2.81219]
[1746105086814,12.68052307,1849.8,1849.7,2.81219]
[1746105087015,12.68052307,1849.8,1849.7,3.67659]
[1746105087715,6.80452307,1849.8,1849.7,3.67659]
[1746105089216,3.2078,1849.8,1849.7,3.67659]
[1746105090623,5.876,1849.9,1849.8,1.08103]
[1746105090918,6.80452307,1850.0,1849.9,1.08097]
[1746105091113,6.80452307,1850.0,1849.9,1.89177]
[1746105091518,6.80452307,1850.0,1849.9,2.16266992]
[1746105092821,3.2078,1850.0,1849.9,2.16266992]
[1746105096217,10.99984,1850.2,1850.1,1.08086]
[1746105096422,10.99984,1850.2,1850.1,41.88086]
[1746105096815,10.99984,1850.2,1850.1,43.46176]
[1746105097018,10.99984,1850.2,1850.1,41.88086]
[1746105097218,12.67194,1850.2,1850.1,41.88086]
[1746105097923,12.67194,1850.2,1850.1,1.08086]
[1746105098124,12.67194,1850.2,1850.1,2.80586]
[1746105103425,1.08086,1850.1,1850.0,40.8]
[1746105103622,1.08097,1849.9,1849.8,1.08096]
[1746105103827,1.08103,1849.8,1849.7,1.35196992]
[1746105104028,5.09733,1849.8,1849.7,42.15196992]
[1746105104523,5.09733,1849.8,1849.7,43.75786992]
[1746105104928,5.09733,1849.8,1849.7,43.48697]
[1746105105130,10.97333,1849.8,1849.7,43.48697]
[1746105105621,10.97333,1849.8,1849.7,2.68697]
[1746105106023,1.08109,1849.7,1849.6,0.27089992]
[1746105106328,2.75329,1849.7,1849.6,1.08115]
[1746105106728,1.08115,1849.6,1849.5,2.93525992]
[1746105107027,5.96115,1849.6,1849.5,2.93525992]
[1746105107226,5.96115,1849.6,1849.5,43.73525992]
[1746105107630,5.96115,1849.6,1849.5,2.93525992]
[1746105107826,1.08126,1849.4,1849.3,7.835843]
[1746105108032,4.28906,1849.4,1849.3,7.56494308]
[1746105108225,7.75506,1849.4,1849.3,0.3604]
[1746105108417,9.42726,1849.4,1849.3,0.3604]
[1746105110233,9.42726,1849.4,1849.3,1.71261992]
[1746105110435,6.7072,1849.5,1849.4,1.08126]
[1746105110734,7.78841,1849.5,1849.4,4.41006]
[1746105111332,1.91241,1849.5,1849.4,4.41006]
[1746105111536,3.2078,1849.6,1849.5,1.08121]
[1746105111835,4.28895,1849.6,1849.5,2.75041]
[1746105112130,3.2078,1849.6,1849.5,2.75041]
[1746105114836,4.28895,1849.6,1849.5,2.75041]
[1746105115132,3.2078,1849.6,1849.5,2.75041]
[1746105115333,3.2078,1849.6,1849.5,43.55041]
[1746105116640,7.75587,1849.8,1849.7,1.08109]
[1746105116940,4.28887,1849.8,1849.7,1.08109]
[1746105117344,4.28887,1849.8,1849.7,1.87449]
[1746105117536,4.28887,1849.8,1849.7,2.14538992]
[1746105118344,3.2078,1849.8,1849.7,2.14538992]
[1746105119837,3.2078,1849.8,1849.7,2.99298992]
[1746105126250,8.3336,1850.0,1849.7,2.99298992]
[1746105126549,3.467,1850.1,1850.0,1.08091]
[1746105126743,5.40696,1850.1,1850.0,1.08091]
[1746105126939,1.93996,1850.1,1850.0,43.45262806]
[1746105128950,1.93996,1850.1,1850.0,44.23632806]
[1746105129849,1.93996,1850.1,1850.0,45.04482806]
[1746105132050,3.65736,1850.1,1850.0,40.8]
[1746105132244,3.65736,1850.1,1850.0,41.88091]
[1746105132746,3.65736,1850.1,1850.0,1.08091]
[1746105136856,1.08091,1850.0,1849.9,2.77052]
[1746105137154,5.91261,1850.0,1849.9,2.77052]
[1746105137655,11.78861,1850.0,1849.9,2.77052]
[1746105139661,11.78861,1850.0,1849.9,1.08092]
[1746105140057,1.08097,1849.9,1849.8,44.65378992]
[1746105140257,2.72097,1849.9,1849.8,44.65382992]
[1746105140454,3.50577,1849.9,1849.8,44.65382992]
[1746105140655,3.50577,1849.9,1849.8,0.27089992]
[1746105140955,1.08109,1849.7,1849.6,3.01579992]
[1746105141158,4.28889,1849.7,1849.6,43.81579992]
[1746105144064,3.2078,1849.7,1849.6,43.81579992]
[1746105145062,4.28889,1849.7,1849.6,43.81579992]
[1746105146163,1.08109,1849.7,1849.6,43.81579992]
[1746105146364,4.28889,1849.7,1849.6,43.81579992]
[1746105151179,1.08109,1849.7,1849.6,43.81579992]
[1746105151377,4.28889,1849.7,1849.6,43.81579992]
[1746105151875,9.0838,1849.7,1849.3,0.3604]
[1746105152082,1.08126,1849.4,1849.3,2.21949992]
[1746105152279,1.08126,1849.4,1849.3,1.9486]
[1746105152580,3.56236,1849.4,1849.3,44.10081992]
[1746105152775,3.56236,1849.4,1849.3,43.01949992]
[1746105152976,3.56236,1849.4,1849.3,3.30081992]
[1746105153176,3.56236,1849.4,1849.3,2.21949992]
[1746105153581,1.89586,1849.4,1849.3,3.30081992]
[1746105154580,1.08126,1849.4,1849.3,3.30081992]
[1746105156581,7.75205,1849.5,1849.4,1.08126]
[1746105156778,4.28905,1849.5,1849.4,2.96715992]
[1746105156976,3.2078,1849.5,1849.4,2.96715992]
[1746105157177,4.28901,1849.5,1849.4,2.96715992]
[1746105161290,3.2078,1849.5,1849.4,2.96715992]
[1746105162184,6.6718,1849.7,1849.5,0.27089992]
[1746105162484,7.7529,1849.7,1849.6,1.88335]
[1746105162684,7.7529,1849.7,1849.6,2.70845]
[1746105166286,1.08115,1849.6,1849.5,1.6389]
[1746105166489,1.93665,1849.6,1849.5,1.6389]
[1746105166685,3.60005,1849.6,1849.5,2.72011]
[1746105168481,3.60005,1849.6,1849.5,1.6389]
[1746105169289,3.60005,1849.6,1849.5,2.72011]
[1746105170790,3.60005,1849.6,1849.5,1.6389]
[1746105171293,1.08121,1849.5,1849.4,1.08121]
[1746105171495,1.08126,1849.4,1849.3,5.02729992]
[1746105177395,5.6692,1849.5,1849.4,1.35215992]
[1746105177598,5.08583,1849.5,1849.4,2.98145992]
[1746105178301,4.28903,1849.5,1849.4,2.98145992]
[1746105179101,1.08121,1849.5,1849.4,2.98145992]
[1746105180701,1.08115,1849.6,1849.5,1.35204992]
[1746105181095,1.08115,1849.6,1849.5,2.94874992]
[1746105182199,14.41613,1849.7,1849.6,1.08115]
[1746105182499,14.41613,1849.7,1849.6,3.49715]
[1746105185397,14.41613,1849.7,1849.6,2.416]
[1746105185796,1.08115,1849.6,1849.5,1.08116]
[1746105185996,2.69755,1849.6,1849.5,2.80916]
[1746105187709,1.08115,1849.6,1849.5,2.80916]
[1746105194307,2.76435,1849.6,1849.5,2.80916]
[1746105198410,1.08115,1849.6,1849.5,2.80916]
[1746105199609,1.08115,1849.6,1849.5,3.08005992]
[1746105200206,14.54887307,1849.7,1849.6,1.08115]
[1746105200509,13.76167307,1849.7,1849.6,3.82954992]
[1746105202108,7.88567307,1849.7,1849.6,3.82954992]
[1746105204710,6.80452307,1849.7,1849.6,3.82954992]
[1746105204906,7.88561307,1849.7,1849.6,3.82954992]
[1746105205215,6.80452307,1849.7,1849.6,3.82954992]
[1746105205412,7.88561307,1849.7,1849.6,3.82954992]
[1746105207616,4.28889,1849.7,1849.6,3.82954992]
[1746105209415,3.2078,1849.7,1849.6,3.82954992]
[1746105209616,4.28889,1849.7,1849.6,3.82954992]
[1746105211813,3.2078,1849.7,1849.6,3.82954992]
[1746105214124,4.28889,1849.7,1849.6,3.82954992]
[1746105214728,1.08123,1849.5,1849.4,1.35210992]
[1746105215028,4.28903,1849.5,1849.4,0.27089992]
[1746105215331,4.28903,1849.5,1849.4,1.35215992]
[1746105215527,5.94603,1849.5,1849.4,1.35215992]
[1746105216323,4.8648,1849.5,1849.3,9.514743]
[1746105216528,1.08126,1849.4,1849.3,7.56494308]
[1746105216729,2.66036,1849.4,1849.3,7.56494308]
[1746105217630,2.66036,1849.4,1849.3,8.64626308]
[1746105219636,2.66036,1849.4,1849.3,7.56494308]
[1746105220136,2.66036,1849.4,1849.3,8.64626308]
[1746105221137,6.25708307,1849.4,1849.3,1.44172]
[1746105223639,6.25708307,1849.4,1849.3,0.3604]
[1746105223937,4.67798307,1849.4,1849.3,1.44172]
[1746105224238,6.31268307,1849.4,1849.3,1.44172]
[1746105224642,4.67798307,1849.4,1849.3,1.44172]
[1746105224842,4.67798307,1849.4,1849.3,1.71261992]
[1746105225631,1.08126,1849.4,1849.3,1.71261992]
[1746105227741,7.88578307,1849.5,1849.4,1.08126]
[1746105227937,7.88578307,1849.5,1849.4,1.91556]
[1746105228340,7.88578307,1849.5,1849.4,0.8343]
[1746105228542,7.88578307,1849.5,1849.4,1.91556]
[1746105229445,4.28906,1849.5,1849.4,1.91556]
[1746105229645,5.93976,1849.5,1849.4,1.91556]
[1746105230539,14.82721307,1849.6,1849.5,1.08121]
[1746105230746,9.47272307,1849.6,1849.5,2.19280992]
[1746105230944,10.55387307,1849.6,1849.5,2.19280992]
[1746105231649,1.08126,1849.4,1849.3,1.44171]
[1746105231845,4.28906,1849.4,1849.3,1.44171]
[1746105232039,4.28906,1849.4,1849.3,0.3604]
[1746105232240,6.01466,1849.4,1849.3,0.3604]
[1746105232543,6.01466,1849.4,1849.3,1.44172]
[1746105233236,4.28906,1849.4,1849.3,1.44172]
[1746105235151,3.2078,1849.4,1849.3,1.44172]
[1746105235352,4.28906,1849.4,1849.3,1.44172]
[1746105236847,4.28906,1849.4,1849.3,3.06362]
[1746105237042,10.16506,1849.4,1849.3,0.3604]
[1746105237247,1.08156,1848.9,1848.8,7.20454308]
[1746105237443,9.0838,1849.0,1848.9,1.35245992]
[1746105237642,4.2893,1849.0,1848.9,42.96185992]
[1746105240146,5.0915,1849.0,1848.9,42.96185992]
[1746105240949,4.2893,1849.0,1848.9,42.96185992]
[1746105241341,10.1652,1849.2,1849.1,1.08144]
[1746105241547,13.76192307,1849.2,1849.1,1.35233992]
[1746105241849,13.77313402,1849.2,1849.1,1.35233992]
[1746105243249,7.89713402,1849.2,1849.1,1.35233992]
[1746105245153,4.30041095,1849.2,1849.1,1.35233992]
[1746105247051,4.30041095,1849.2,1849.1,1.08144]
[1746105247253,3.21901095,1849.2,1849.1,1.08144]
[1746105247447,3.21901095,1849.2,1849.1,1.35233992]
[1746105247448,0.01121095,1849.2,1849.1,1.35233992]
[1746105249550,0.01121095,1849.2,1849.1,4.56013992]
[1746105251454,0.01121095,1849.2,1849.1,9.56013992]
[1746105253154,5.876,1849.5,1849.4,1.08126]
[1746105253453,4.0666,1849.6,1849.5,1.08121]
[1746105253653,5.14775,1849.6,1849.5,1.08121]
[1746105256345,4.0666,1849.6,1849.5,1.08121]
[1746105256854,5.14775,1849.6,1849.5,2.72431]
[1746105257555,5.14775,1849.6,1849.5,1.08121]
[1746105257756,6.76075,1849.6,1849.5,1.08121]
[1746105257956,6.76075,1849.6,1849.5,2.74701]
[1746105258160,1.08121,1849.5,1849.4,0.8496]
[1746105258358,2.72231,1849.5,1849.4,3.55562]
[1746105259058,1.6411,1849.5,1849.4,3.55562]
[1746105259359,4.0666,1849.6,1849.5,1.08121]
[1746105259561,5.14775,1849.6,1849.5,2.70601]
[1746105259753,4.0666,1849.6,1849.5,2.70601]
[1746105260853,4.0666,1849.6,1849.5,3.51151]
[1746105261255,3.2078,1849.6,1849.5,3.51151]
[1746105261556,3.59672307,1849.7,1849.6,1.08115]
[1746105261749,7.88561307,1849.7,1849.6,2.75125]
[1746105262258,6.80452307,1849.7,1849.6,2.75125]
[1746105262456,7.88561307,1849.7,1849.6,2.75125]
[1746105263861,4.28889,1849.7,1849.6,2.75125]
[1746105264061,3.2078,1849.7,1849.6,3.02214992]
[1746105264363,6.7018,1849.8,1849.7,1.08109]
[1746105264558,7.78283,1849.8,1849.7,3.52329]
[1746105266564,6.7018,1849.8,1849.7,3.52329]
[1746105266860,6.80452307,1849.9,1849.8,1.08103]
[1746105267157,6.80452307,1849.9,1849.8,3.57653]
[1746105267964,3.2078,1849.9,1849.8,3.57653]
[1746105268658,4.37992307,1850.0,1849.9,1.08097]
[1746105268964,3.59672307,1850.0,1849.9,2.78717]
[1746105269562,3.59672307,1850.0,1849.9,6.51706992]
[1746105270363,3.59672307,1850.0,1849.9,47.31706992]
[1746105273161,3.2078,1850.1,1850.0,1.08091]
[1746105273365,3.2078,1850.1,1850.0,3.62251]
[1746105273566,3.2078,1850.1,1850.0,3.89340992]
[1746105273866,0.7832,1850.2,1850.1,1.08086]
[1746105274057,1.864,1850.2,1850.1,2.67526]
[1746105274462,3.5702,1850.2,1850.1,2.67526]
[1746105281763,1.864,1850.2,1850.1,2.67526]
[1746105282271,0.7832,1850.2,1850.1,3.49446]
[1746105282673,1.864,1850.2,1850.1,2.67526]
[1746105282975,2.70215,1850.1,1849.9,41.88094]
[1746105283169,2.70761,1850.0,1849.9,46.91574]
[1746105283369,1.6267,1850.0,1849.9,46.91574]
[1746105283570,4.2887,1850.1,1850.0,1.08091]
[1746105283771,4.2887,1850.1,1850.0,2.65771]
[1746105285073,3.2078,1850.1,1850.0,2.65771]
[1746105285270,1.86404,1850.2,1850.1,1.08086]
[1746105285470,1.86404,1850.2,1850.1,2.65766]
[1746105288376,1.86404,1850.2,1850.1,2.92855992]
[1746105289277,4.28859,1850.3,1850.2,1.0808]
[1746105289577,4.28859,1850.3,1850.2,4.3384]
[1746105292671,4.28859,1850.3,1850.2,4.60929992]
[1746105294177,3.2078,1850.3,1850.0,0.27089992]
[1746105294380,4.28866,1850.1,1850.0,2.98450992]
[1746105294672,3.2078,1850.1,1850.0,2.98450992]
[1746105294874,3.2078,1850.3,1850.2,1.08076]
[1746105295473,3.2078,1850.3,1850.2,2.72986]
[1746105297781,3.2078,1850.3,1850.2,4.29746]
[1746105300684,3.2078,1850.3,1850.2,4.56835992]
[1746105302681,0.8402,1850.4,1850.2,4.56835992]
[1746105302882,0.8402,1850.4,1850.3,2.64704]
[1746105305085,0.8402,1850.4,1850.3,2.91793992]
[1746105305582,4.28848,1850.5,1850.4,1.08068]
[1746105305783,4.28848,1850.5,1850.4,1.6642]
[1746105305784,5.11182,1850.5,1850.4,1.6642]
[1746105306178,6.69742,1850.5,1850.4,2.74488]
[1746105306585,4.0312,1850.5,1850.4,2.74488]
[1746105307281,5.39391158,1850.8,1850.6,1.35145992]
[1746105307485,4.04290158,1850.8,1850.7,10.16661]
[1746105307677,2.71208158,1850.8,1850.7,47.78150992]
[1746105307874,2.71208158,1850.8,1850.7,52.78150992]
[1746105308082,2.71208158,1850.8,1850.7,56.23750992]
[1746105308390,2.71208158,1850.8,1850.7,60.02550992]
[1746105308984,2.71208158,1850.8,1850.7,51.56950992]
[1746105309184,2.71208158,1850.8,1850.7,51.23750992]
[1746105310083,2.71208158,1850.8,1850.7,55.02550992]
[1746105310384,0.7929,1851.1,1851.0,1.08033]
[1746105311187,0.7929,1851.1,1851.0,3.64063]
[1746105311388,3.2078,1851.4,1851.3,1.08015]
[1746105311589,5.6759,1851.4,1851.3,1.08015]
[1746105312793,6.5254,1851.4,1851.3,1.08015]
[1746105314793,7.60554,1851.4,1851.3,1.08015]
[1746105314999,1.08019,1851.3,1851.2,1.08019]
[1746105315200,2.68879,1851.3,1851.2,1.08019]
[1746105315495,1.08026,1851.2,1851.1,1.08021]
[1746105315795,1.6086,1851.2,1851.1,1.08021]
[1746105315992,2.68881,1851.2,1851.1,1.08021]
[1746105316498,1.6086,1851.2,1851.1,1.08021]
[1746105316792,2.68881,1851.2,1851.1,1.08021]
[1746105321398,1.6086,1851.2,1851.1,1.08021]
[1746105321598,2.68881,1851.2,1851.1,1.08021]
[1746105322397,1.6086,1851.2,1851.1,1.08021]
[1746105322792,2.68881,1851.2,1851.1,1.08021]
[1746105325491,2.68881,1851.2,1850.8,1.08039]
[1746105325492,1.08045,1850.9,1850.8,1.08039]
[1746105325699,1.08045,1850.8,1850.7,1.35136992]
[1746105325897,3.58175,1850.8,1850.7,1.6781]
[1746105326099,3.58175,1850.8,1850.7,2.75861]
[1746105327695,1.08056,1850.6,1850.5,1.35147992]
[1746105328000,1.08056,1850.6,1850.5,3.02957992]
[1746105328200,1.08056,1850.6,1850.5,42.74899992]
[1746105328696,4.28836,1850.6,1850.5,42.4781]
[1746105328993,5.95066,1850.6,1850.5,40.8]
[1746105329693,1.08062,1850.5,1850.4,0.27089992]
[1746105329904,3.57272,1850.5,1850.4,0.27089992]
[1746105330197,3.57272,1850.5,1850.4,41.07089992]
[1746105330395,3.57272,1850.5,1850.4,42.68569992]
[1746105330799,3.57272,1850.5,1850.4,40.8]
[1746105331005,1.08074,1850.3,1850.2,1.88569992]
[1746105331294,1.08074,1850.3,1850.2,1.6148]
[1746105331492,1.08074,1850.3,1850.2,42.4148]
[1746105331694,3.51164,1850.3,1850.2,42.4148]
[1746105332192,1.08091,1850.0,1849.9,1.12169992]
[1746105332389,1.08097,1849.9,1849.8,1.08229992]
[1746105332792,1.08097,1849.9,1849.8,0.27089992]
[1746105333404,1.08097,1849.9,1849.8,1.89779992]
[1746105333800,5.13107,1849.9,1849.8,1.89779992]
[1746105334103,1.92327,1849.9,1849.8,2.97882992]
[1746105334305,5.13107,1849.9,1849.8,2.97882992]
[1746105335101,5.13107,1849.9,1849.8,1.89779992]
[1746105335703,5.13107,1849.9,1849.8,42.4269]
[1746105335904,5.96267,1849.9,1849.8,1.6269]
[1746105336393,7.69917,1849.9,1849.8,1.6269]
[1746105336598,1.08103,1849.8,1849.7,41.07089992]
[1746105336799,2.81753,1849.8,1849.7,40.8]
[1746105337904,1.08109,1849.7,1849.6,1.7204]
[1746105338103,1.08115,1849.6,1849.5,0.27089992]
[1746105338299,1.08144,1849.1,1849.0,1.35234992]
[1746105338505,1.08144,1849.2,1849.1,1.0814]
[1746105338696,1.08144,1849.1,1849.0,1.35234992]
[1746105338999,1.08144,1849.1,1849.0,42.15234992]
[1746105339702,1.08144,1849.1,1849.0,43.85614992]
[1746105341404,1.0814,1849.2,1849.1,1.08138]
[1746105341803,4.28917,1849.3,1849.2,1.08138]
[1746105343399,1.08143,1849.2,1849.1,1.08139]
[1746105345404,3.2078,1849.3,1849.2,1.08138]
[1746105345702,4.28912,1849.3,1849.2,1.08138]
[1746105346102,1.08132,1849.3,1849.2,1.08138]
[1746105346299,1.08132,1849.3,1849.2,1.35227992]
[1746105346501,5.07515,1849.5,1849.4,1.08126]
[1746105346807,8.87261,1849.7,1849.6,1.08115]
[1746105346808,7.75594,1849.7,1849.6,1.08115]
[1746105347304,1.08121,1849.5,1849.4,1.08121]
[1746105347501,1.08121,1849.5,1849.4,1.35210992]
[1746105350604,2.78329,1849.6,1849.5,1.08121]
[1746105350793,1.08119,1849.6,1849.5,1.08121]
[1746105352508,7.75694,1849.7,1849.6,1.08115]
[1746105354311,4.28894,1849.7,1849.6,1.08115]
[1746105354713,3.2078,1849.7,1849.6,1.08115]
[1746105355214,9.41584,1850.0,1849.7,2.70261]
[1746105355412,4.28874,1850.0,1849.9,1.08097]
[1746105355812,1.08094,1850.0,1849.9,1.08097]
[1746105356014,3.2078,1850.0,1849.7,0.8341]
[1746105356315,1.08106,1849.8,1849.7,1.08103]
[1746105356810,2.72046,1849.8,1849.7,1.08103]
[1746105357708,1.08109,1849.7,1849.6,2.92989992]
[1746105359515,7.56777,1849.8,1849.7,1.08109]
[1746105359814,7.56777,1849.8,1849.7,2.68129]
[1746105360511,6.4867,1849.8,1849.7,2.68129]
[1746105360815,7.56773,1849.8,1849.7,2.68129]
[1746105361417,4.8472,1849.8,1849.7,2.68129]
[1746105361617,5.92823,1849.8,1849.7,2.68129]
[1746105361817,4.8472,1849.8,1849.7,2.95218992]
[1746105362017,3.2078,1849.8,1849.7,2.95218992]
[1746105362314,4.28883,1849.8,1849.7,2.95218992]
[1746105363317,1.08121,1849.5,1849.4,2.18622992]
[1746105364218,4.289,1849.6,1849.5,1.08121]
[1746105364612,4.289,1849.6,1849.5,1.6674]
[1746105365015,6.0139,1849.6,1849.5,1.6674]
[1746105365218,4.9327,1849.6,1849.3,1.35216992]
[1746105365416,1.08126,1849.4,1849.3,3.02626992]
[1746105365916,1.90076,1849.4,1849.3,3.02626992]
[1746105368721,0.8195,1849.4,1849.3,3.02626992]
[1746105369722,1.90076,1849.4,1849.3,3.02626992]
[1746105371727,0.8195,1849.4,1849.3,3.02626992]
[1746105372025,1.90076,1849.4,1849.3,3.02626992]
[1746105373318,2.76316,1849.4,1849.3,3.02626992]
[1746105374429,1.6819,1849.4,1849.3,3.02626992]
[1746105374627,10.95246,1849.6,1849.5,1.08121]
[1746105374930,10.16496,1849.6,1849.5,1.08121]
[1746105375328,10.16496,1849.6,1849.5,2.72191]
[1746105378233,1.08116,1849.6,1849.5,2.72191]
[1746105378730,1.08116,1849.6,1849.5,2.99280992]
[1746105379341,8.60703,1849.7,1849.6,1.08115]
[1746105379536,8.60703,1849.7,1849.6,3.02674992]
[1746105381038,10.26573,1849.7,1849.6,0.27089992]
[1746105381345,10.26573,1849.7,1849.6,1.35204992]
[1746105381647,5.876,1849.7,1849.6,1.35204992]
[1746105382042,6.95709,1849.7,1849.6,1.35204992]
[1746105382248,5.876,1849.7,1849.6,1.35204992]
[1746105382837,5.876,1849.7,1849.6,2.93064992]
[1746105383544,5.876,1849.7,1849.6,6.13844992]
[1746105383751,5.38593214,1849.9,1849.8,1.35192992]
[1746105383953,5.38593214,1850.0,1849.9,1.35186992]
[1746105384243,5.38593214,1850.0,1849.9,3.04686992]
[1746105385447,6.46684214,1850.0,1849.9,1.695]
[1746105385633,1.08097,1849.9,1849.8,1.35188992]
[1746105385840,1.94537,1849.9,1849.8,3.04688992]
[1746105386848,1.94537,1849.9,1849.8,2.77599]
[1746105387148,1.0812,1849.6,1849.5,1.08117]
[1746105387644,1.08121,1849.5,1849.4,3.478]
[1746105387949,3.66991,1849.5,1849.4,1.08126]
[1746105388247,1.08126,1849.4,1849.3,2.18338992]
[1746105390942,1.91926,1849.4,1849.3,1.91249]
[1746105391143,1.91926,1849.4,1849.3,1.08129]
[1746105391437,3.56736,1849.4,1849.3,1.08129]
[1746105392048,3.56736,1849.4,1849.3,1.35218992]
[1746105392249,1.91926,1849.4,1849.3,1.35218992]
[1746105392450,0.838,1849.4,1849.3,1.35218992]
[1746105392849,0.8644,1849.5,1849.4,1.08126]